fUSD/lending_fUSD_20250510
["ID","MTS","AMOUNT","RATE_DAILY","PERIOD"]
[360626712,1746907860751,-400.0,0.00019741,2]
[360626713,1746907860760,-307.72253798,0.00019741,2]
[360626714,1746907860769,-400.0,0.00019741,2]
[360626715,1746907860779,-428.11,0.00019741,2]
[360626716,1746907860788,-313.75,0.00019741,2]
[360626717,1746907860797,-400.0,0.00019741,2]
[360626718,1746907860806,-400.0,0.00019741,2]
[360626719,1746907860815,-400.0,0.00019741,2]
[360626720,1746907860825,-400.0,0.00019741,2]
[360626721,1746907860834,-400.0,0.00019741,2]
[360626722,1746907860967,-400.0,0.00019741,2]
[360626723,1746907860977,-400.0,0.00019741,2]
[360626724,1746907860989,-400.0,0.00019741,2]
[360626725,1746907860998,-400.0,0.00019741,2]
[360626726,1746907861008,-400.0,0.00019741,2]
[360626727,1746907861020,-400.0,0.00019741,2]
[360626728,1746907861032,-400.0,0.00019741,2]
[360626729,1746907861041,-400.0,0.00019741,2]
[360626730,1746907861052,-400.0,0.00019741,2]
[360626731,1746907861062,-400.0,0.00019741,2]
[360626732,1746907861071,-400.0,0.00019741,2]
[360626733,1746907861080,-400.0,0.00019741,2]
[360626734,1746907861089,-400.0,0.00019741,2]
[360626735,1746907861098,-400.0,0.00019741,2]
[360626736,1746907861111,-400.0,0.00019741,2]
[360626737,1746907861120,-400.0,0.00019741,2]
[360626738,1746907861129,-400.0,0.00019741,2]
[360626739,1746907861138,-400.0,0.00019741,2]
[360626740,1746907861149,-400.0,0.00019741,2]
[360626741,1746907861158,-400.0,0.00019741,2]
[360626742,1746907861168,-400.0,0.00019741,2]
[360626743,1746907861177,-250.0,0.00019741,2]
[360626744,1746907861187,-400.0,0.00019741,2]
[360626745,1746907861196,-400.0,0.00019741,2]
[360626746,1746907861206,-400.0,0.00019741,2]
[360626747,1746907861216,-400.0,0.00019741,2]
[360626748,1746907861226,-400.0,0.00019741,2]
[360626749,1746907861235,-400.0,0.00019741,2]
[360626750,1746907861245,-450.0,0.00019741,2]
[360626751,1746907861256,-400.0,0.00019741,2]
[360626752,1746907861265,-400.0,0.00019741,2]
[360626753,1746907861275,-400.0,0.00019741,2]
[360626754,1746907861284,-400.0,0.00019741,2]
[360626755,1746907861293,-400.0,0.00019741,2]
[360626756,1746907861303,-400.0,0.00019741,2]
[360626757,1746907861312,-400.0,0.00019741,2]
[360626758,1746907861321,-400.0,0.00019741,2]
[360626759,1746907861331,-400.0,0.00019741,2]
[360626760,1746907861341,-400.0,0.00019741,2]
[360626761,1746907861351,-400.0,0.00019741,2]
[360626762,1746907861361,-400.0,0.00019741,2]
[360626763,1746907861370,-400.0,0.00019741,2]
[360626764,1746907861380,-471.68,0.00019741,2]
[360626765,1746907861389,-400.0,0.00019741,2]
[360626766,1746907861399,-500.0,0.00019741,2]
[360626767,1746907861408,-400.0,0.00019741,2]
[360626768,1746907861418,-400.0,0.00019741,2]
[360626769,1746907861427,-400.0,0.00019741,2]
[360626770,1746907861437,-400.0,0.00019741,2]
[360626771,1746907861446,-400.0,0.00019741,2]
[360626772,1746907861456,-400.0,0.00019741,2]
[360626773,1746907861466,-400.0,0.00019741,2]
[360626774,1746907861476,-467.55775534,0.00019741,2]
[360626775,1746907861485,-400.0,0.00019741,2]
[360626776,1746907861495,-400.0,0.00019741,2]
[360626777,1746907861505,-400.0,0.00019741,2]
[360626778,1746907861515,-400.0,0.00019741,2]
[360626779,1746907861524,-400.0,0.00019741,2]
[360626780,1746907861534,-400.0,0.00019741,2]
[360626781,1746907861543,-253.59401236,0.00019741,2]
[360626782,1746907861553,-400.0,0.00019741,2]
[360626783,1746907861562,-400.0,0.00019741,2]
[360626784,1746907861571,-409.09,0.00019741,2]
[360626785,1746907861580,-400.0,0.00019741,2]
[360626786,1746907861590,-400.0,0.00019741,2]
[360626787,1746907861599,-442.48,0.00019741,2]
[360626788,1746907861608,-400.0,0.00019741,2]
[360626789,1746907861617,-400.0,0.00019741,2]
[360626790,1746907861626,-400.0,0.00019741,2]
[360626791,1746907861635,-400.0,0.00019741,2]
[360626792,1746907861645,-965.48,0.00019741,2]
[360626793,1746907861655,-400.0,0.00019741,2]
[360626794,1746907861664,-400.0,0.00019741,2]
[360626795,1746907861673,-400.0,0.00019741,2]
[360626796,1746907861682,-400.0,0.00019741,2]
[360626797,1746907861691,-400.0,0.00019741,2]
[360626798,1746907861701,-345.92459618,0.00019741,2]
[360626799,1746907861710,-400.0,0.00019741,2]
[360626800,1746907861719,-400.0,0.00019741,2]
[360626801,1746907861729,-540.94,0.00019741,2]
[360626802,1746907861739,-636.82,0.00019741,2]
[360626803,1746907861748,-400.0,0.00019741,2]
[360626804,1746907861758,-495.99,0.00019741,2]
[360626805,1746907861767,-400.0,0.00019741,2]
[360626806,1746907861777,-777.16,0.00019741,2]
[360626807,1746907861786,-400.0,0.00019741,2]
[360626808,1746907861795,-400.0,0.00019741,2]
[360626809,1746907861806,-400.0,0.00019741,2]
[360626810,1746907861815,-400.0,0.00019741,2]
[360626811,1746907861824,-570.78,0.00019741,2]
[360626812,1746907861833,-400.0,0.00019741,2]
[360626813,1746907861843,-400.0,0.00019741,2]
[360626814,1746907861853,-400.0,0.00019741,2]
[360626815,1746907861862,-792.32,0.00019741,2]
[360626816,1746907861873,-400.0,0.00019741,2]
[360626817,1746907861883,-400.0,0.00019741,2]
[360626818,1746907861892,-400.0,0.00019741,2]
[360626819,1746907861901,-422.44,0.00019741,2]
[360626820,1746907861910,-400.0,0.00019741,2]
[360626821,1746907861919,-400.0,0.00019741,2]
[360626822,1746907861928,-400.0,0.00019741,2]
[360626823,1746907861939,-400.0,0.00019741,2]
[360626824,1746907861948,-400.0,0.00019741,2]
[360626825,1746907861958,-400.0,0.00019741,2]
[360626826,1746907861968,-400.0,0.00019741,2]
[360626827,1746907861977,-400.0,0.00019741,2]
[360626828,1746907861989,-417.71839635,0.00019741,2]
[360626829,1746907861998,-400.0,0.00019741,2]
[360626830,1746907862007,-411.93,0.00019741,2]
[360626831,1746907862019,-400.0,0.00019741,2]
[360626832,1746907862029,-456.67601985,0.00019741,2]
[360626833,1746907862039,-400.0,0.00019741,2]
[360626834,1746907862051,-400.0,0.00019741,2]
[360626835,1746907862061,-422.60368988,0.00019741,2]
[360626836,1746907862071,-400.0,0.00019741,2]
[360626837,1746907862080,-400.0,0.00019741,2]
[360626838,1746907862090,-405.57,0.00019741,2]
[360626839,1746907862100,-513.96,0.00019741,2]
[360626840,1746907862109,-400.0,0.00019741,2]
[360626841,1746907862121,-405.27214033,0.00019741,2]
[360626842,1746907862130,-735.77,0.00019741,2]
[360626843,1746907862139,-400.0,0.00019741,2]
[360626844,1746907862149,-400.0,0.00019741,2]
[360626845,1746907862159,-400.0,0.00019741,2]
[360626846,1746907862168,-500.0,0.00019741,2]
[360626847,1746907862178,-400.0,0.00019741,2]
[360626848,1746907862187,-400.0,0.00019741,2]
[360626849,1746907862198,-400.0,0.00019741,2]
[360626850,1746907862209,-406.5611586,0.00019741,2]
[360626851,1746907862218,-400.0,0.00019741,2]
[360626852,1746907862228,-400.0,0.00019741,2]
[360626853,1746907862238,-535.95,0.00019741,2]
[360626854,1746907862247,-400.0,0.00019741,2]
[360626855,1746907862258,-400.0,0.00019741,2]
[360626856,1746907862267,-400.0,0.00019741,2]
[360626857,1746907862277,-400.0,0.00019741,2]
[360626858,1746907862286,-151.0,0.00019741,2]
[360626859,1746907862295,-400.0,0.00019741,2]
[360626860,1746907862305,-734.51,0.00019741,2]
[360626861,1746907862316,-151.0,0.00019741,2]
[360626862,1746907862325,-400.0,0.00019741,2]
[360626863,1746907862336,-400.0,0.00019741,2]
[360626864,1746907862345,-151.0,0.00019741,2]
[360626865,1746907862355,-400.0,0.00019741,2]
[360626866,1746907862366,-151.0,0.00019741,2]
[360626867,1746907862377,-548.42,0.00019741,2]
[360626868,1746907862387,-400.0,0.00019741,2]
[360626869,1746907862396,-400.0,0.00019741,2]
[360626870,1746907862406,-420.09744836,0.00019741,2]
[360626871,1746907862416,-400.0,0.00019741,2]
[360626872,1746907862426,-400.0,0.00019741,2]
[360626873,1746907862435,-400.0,0.00019741,2]
[360626874,1746907862445,-151.0,0.00019741,2]
[360626875,1746907862454,-400.0,0.00019741,2]
[360626876,1746907862463,-400.0,0.00019741,2]
[360626877,1746907862472,-400.0,0.00019741,2]
[360626878,1746907862482,-483.17,0.00019741,2]
[360626879,1746907862492,-151.0,0.00019741,2]
[360626880,1746907862501,-593.5,0.00019741,2]
[360626881,1746907862511,-400.0,0.00019741,2]
[360626882,1746907862520,-400.0,0.00019741,2]
[360626883,1746907862530,-400.0,0.00019741,2]
[360626884,1746907862539,-400.0,0.00019741,2]
[360626885,1746907862550,-400.0,0.00019741,2]
[360626886,1746907862560,-450.88,0.00019741,2]
[360626887,1746907862569,-503.50124388,0.00019741,2]
[360626888,1746907862579,-151.0,0.00019741,2]
[360626889,1746907862588,-151.0,0.00019741,2]
[360626890,1746907862597,-151.0,0.00019741,2]
[360626891,1746907862607,-402.5399531,0.00019741,2]
[360626892,1746907862616,-151.0,0.00019741,2]
[360626893,1746907862626,-400.0,0.00019741,2]
[360626894,1746907862635,-2547.76,0.00019741,2]
[360626895,1746907862644,-400.0,0.00019741,2]
[360626896,1746907862653,-400.0,0.00019741,2]
[360626897,1746907862663,-400.0,0.00019741,2]
[360626898,1746907862672,-526.33,0.00019741,2]
[360626899,1746907862682,-1320.43,0.00019741,2]
[360626900,1746907862691,-1252.51,0.00019741,2]
[360626901,1746907862700,-151.0,0.00019741,2]
[360626902,1746907862709,-400.0,0.00019741,2]
[360626903,1746907862718,-1687.71,0.00019741,2]
[360626904,1746907862727,-400.0,0.00019741,2]
[360626905,1746907862736,-400.0,0.00019741,2]
[360626906,1746907862745,-156.345998,0.00019741,2]
[360626907,1746907862754,-155.521842,0.00019741,2]
[360626908,1746907862763,-400.0,0.00019741,2]
[360626909,1746907862772,-151.0,0.00019741,2]
[360626910,1746907862782,-400.0,0.00019741,2]
[360626911,1746907862791,-151.0,0.00019741,2]
[360626912,1746907862800,-196.56,0.00019741,2]
[360626913,1746907862810,-400.0,0.00019741,2]
[360626914,1746907862819,-400.0,0.00019741,2]
[360626915,1746907862828,-151.0,0.00019741,2]
[360626916,1746907862837,-400.0,0.00019741,2]
[360626917,1746907862846,-154.861009,0.00019741,2]
[360626918,1746907862855,-400.0,0.00019741,2]
[360626919,1746907862865,-400.0,0.00019741,2]
[360626920,1746907862874,-400.0,0.00019741,2]
[360626921,1746907862883,-406.29,0.00019741,2]
[360626922,1746907862892,-400.0,0.00019741,2]
[360626923,1746907862902,-1440.61,0.00019741,2]
[360626924,1746907862911,-151.0,0.00019741,2]
[360626925,1746907862920,-400.0,0.00019741,2]
[360626926,1746907862930,-1074.13,0.00019741,2]
[360626927,1746907862940,-193.8008059,0.00019741,2]
[360626928,1746907863440,-314.4191941,0.00019741,2]
[360626929,1746907863450,-151.0,0.00019741,2]
[360626930,1746907863460,-539.56,0.00019741,2]
[360626931,1746907863470,-400.0,0.00019741,2]
[360626932,1746907863480,-15735.0208059,0.00019741,2]
[360626933,1746907864067,-876.84,0.00019178,2]
[360626934,1746907864078,-876.84,0.00019178,2]
[360626935,1746907864088,-876.84,0.0001945,2]
[360626936,1746907864098,-1144.0,0.00019522,2]
[360626937,1746907864108,-644.33222888,0.00019706,2]
[360626938,1746907864118,-876.84,0.0001974,2]
[360626939,1746907864128,-1806.99342664,0.00019741,2]
[360626940,1746907864168,-441.18848038,0.00019741,2]
[360626941,1746907864435,-400.0,0.00019178,2]
[360626942,1746907864447,-400.0,0.00019178,2]
[360626943,1746907864457,-6689.16166098,0.00019741,2]
[360626944,1746907864469,-2069.79382497,0.00019741,2]
[360626945,1746907864481,-8892.29253293,0.00019741,2]
[360626946,1746907864556,-2568.1992682,0.00019741,2]
[360626947,1746907864566,-151.0,0.00019741,2]
[360626948,1746907864576,-320.12,0.00019741,2]
[360626949,1746907864586,-120.6807318,0.00019741,2]
[360626950,1746907909649,223.79,0.00030137,120]
[360626953,1746907997885,1123.82,0.00016754,2]
[360626954,1746908457433,250.0,0.00017,2]
[360626955,1746908511832,1139.46,0.00024975,120]
[360626956,1746908512238,1139.46,0.00027246,120]
[360626957,1746908798018,488.47,0.00013699,2]
[360626958,1746908829128,-152.9071982,0.00018,2]
[360626959,1746908832092,-315.23794919,0.00018,2]
[360626960,1746908852076,-179.88420449,0.00017963,2]
[360626961,1746908852097,-1138.05946575,0.00018,2]
[360626962,1746908950271,-546.07,0.00017992,2]
[360626963,1746908950300,-5117.36597347,0.00018,2]
[360626971,1746909026460,-300.0,0.00018018,2]
[360626972,1746909026486,-1200.0,0.00018018,2]
[360626973,1746909026514,-1586.56402653,0.00018019,2]
[360626978,1746909032279,-614.97,0.00018019,2]
[360626979,1746909032292,-321.07530859,0.00018019,2]
[360626981,1746909032412,-300.0,0.00018019,2]
[360626985,1746909032472,-36872.81568052,0.00018019,2]
[360626987,1746909032483,-4052.38228514,0.00018019,2]
[360626990,1746909032508,-5221.923,0.00018019,2]
[360627360,1746909038469,-425.57549126,0.00018006,2]
[360627361,1746909038482,-38578.88134664,0.00018006,2]
[360627362,1746909038491,-60737.28527357,0.00018019,2]
[360627363,1746909038502,-5691.04309225,0.00018019,2]
[360627364,1746909038511,-200.0,0.00018031,2]
[360627365,1746909038523,-250.0,0.00018031,2]
[360627366,1746909038532,-200.0,0.00018061,2]
[360627367,1746909038541,-1000.0,0.00018063,2]
[360627368,1746909038551,-600.0,0.0001808,2]
[360627369,1746909038560,-300.0,0.00018081,2]
[360627370,1746909038569,-1337.01763343,0.00018083,2]
[360627377,1746909040444,-3171.29855877,0.00018083,2]
[360627378,1746909040455,-1305.10085251,0.00018083,2]
[360627379,1746909040467,-282.37902723,0.00018083,2]
[360627380,1746909040488,-760.96693663,0.00018083,2]
[360627381,1746909040536,-17043.23699143,0.00018083,2]
[360627382,1746909040545,-644.5,0.00018097,2]
[360627383,1746909040555,-1139.46,0.00018164,2]
[360627384,1746909040564,-159.1,0.00018201,2]
[360627385,1746909040574,-200.0,0.00018294,2]
[360627386,1746909040583,-250.0,0.0001847,2]
[360627387,1746909040593,-2081.7,0.00018849,2]
[360627388,1746909040603,-304.0,0.00018904,2]
[360627389,1746909040613,-1312.25967319,0.00018917,2]
[360627390,1746909040622,-207.4,0.00018945,2]
[360627391,1746909040631,-500.0,0.00018973,2]
[360627392,1746909040641,-500.0,0.00018973,2]
[360627393,1746909040650,-262.17,0.0001899,2]
[360627394,1746909040659,-262.17,0.0001899,2]
[360627395,1746909040669,-166.05,0.00018993,2]
[360627396,1746909040678,-1312.2596731,0.00018997,2]
[360627397,1746909040689,-300.0,0.00019,2]
[360627398,1746909040698,-164061.31490755,0.00019,2]
[360627399,1746909040710,-352312.24534952,0.00019,2]
[360627400,1746909040719,-1000.0,0.00019017,2]
[360627401,1746909040729,-1123.82,0.00019018,2]
[360627402,1746909040739,-693.3919763,0.00019067,2]
[360627403,1746909040749,-1312.2596731,0.00019078,2]
[360627404,1746909040758,-2341.58026272,0.00019078,2]
[360627405,1746909040768,-168.15645591,0.00019078,2]
[360627406,1746909040778,-161.5440321,0.00019078,2]
[360627407,1746909040787,-211.78190028,0.00019078,2]
[360627408,1746909040796,-166.55221696,0.00019078,2]
[360627409,1746909040806,-524.43238139,0.00019078,2]
[360627410,1746909040815,-9282.1072,0.00019078,2]
[360627411,1746909040824,-2039.6437,0.00019078,2]
[360627412,1746909040833,-3585.685,0.00019078,2]
[360627413,1746909040843,-5354.5344,0.00019078,2]
[360627414,1746909040852,-1000.0,0.00019078,2]
[360627415,1746909040861,-2187.0735,0.00019078,2]
[360627416,1746909040870,-1835.466,0.00019128,2]
[360627417,1746909040880,-186.583,0.00019128,2]
[360627418,1746909040889,-9534.9050518,0.0001913,2]
[360627419,1746909040898,-1312.2596731,0.00019158,2]
[360627420,1746909040907,-672.0,0.00019163,2]
[360627421,1746909040917,-2341.5802627,0.00019165,2]
[360627422,1746909040926,-170.64766694,0.00019168,2]
[360627423,1746909040935,-633.79843392,0.00019173,2]
[360627424,1746909040944,-500.0,0.00019173,2]
[360627425,1746909040954,-556.86010887,0.00019173,2]
[360627426,1746909040963,-500.0,0.00019173,2]
[360627427,1746909040972,-500.0,0.00019173,2]
[360627428,1746909040981,-500.0,0.00019173,2]
[360627429,1746909040991,-300.0,0.00019173,2]
[360627430,1746909040999,-500.0,0.00019173,2]
[360627431,1746909041010,-400.0,0.00019178,2]
[360627432,1746909041019,-400.0,0.00019178,2]
[360627433,1746909041028,-400.0,0.00019178,2]
[360627434,1746909041038,-400.0,0.00019178,2]
[360627435,1746909041047,-400.0,0.00019178,2]
[360627436,1746909041056,-400.0,0.00019178,2]
[360627437,1746909041066,-400.0,0.00019178,2]
[360627438,1746909041075,-400.0,0.00019178,2]
[360627439,1746909041085,-400.0,0.00019178,2]
[360627440,1746909041094,-400.0,0.00019178,2]
[360627441,1746909041283,-400.0,0.00019178,2]
[360627442,1746909041295,-412.79,0.00019178,2]
[360627443,1746909041305,-400.0,0.00019178,2]
[360627444,1746909041314,-400.0,0.00019178,2]
[360627445,1746909041323,-400.0,0.00019178,2]
[360627446,1746909041334,-400.0,0.00019178,2]
[360627447,1746909041343,-425.84604749,0.00019178,2]
[360627448,1746909041352,-400.0,0.00019178,2]
[360627449,1746909041361,-400.0,0.00019178,2]
[360627450,1746909041372,-400.0,0.00019178,2]
[360627451,1746909041382,-400.0,0.00019178,2]
[360627452,1746909041392,-400.0,0.00019178,2]
[360627453,1746909041401,-400.0,0.00019178,2]
[360627454,1746909041410,-400.0,0.00019178,2]
[360627455,1746909041420,-400.0,0.00019178,2]
[360627456,1746909041429,-400.0,0.00019178,2]
[360627457,1746909041439,-400.0,0.00019178,2]
[360627458,1746909041448,-400.0,0.00019178,2]
[360627459,1746909041457,-400.0,0.00019178,2]
[360627460,1746909041466,-400.0,0.00019178,2]
[360627461,1746909041475,-400.0,0.00019178,2]
[360627462,1746909041485,-400.0,0.00019178,2]
[360627463,1746909041496,-400.0,0.00019178,2]
[360627464,1746909041506,-318.88096621,0.00019178,2]
[360627465,1746909041516,-400.0,0.00019178,2]
[360627466,1746909041526,-400.0,0.00019178,2]
[360627467,1746909041536,-400.0,0.00019178,2]
[360627468,1746909041545,-400.0,0.00019178,2]
[360627469,1746909041555,-400.0,0.00019178,2]
[360627470,1746909041565,-230.5585919,0.00019178,2]
[360627471,1746909041575,-400.0,0.00019178,2]
[360627472,1746909041585,-400.0,0.00019178,2]
[360627473,1746909041595,-400.0,0.00019178,2]
[360627474,1746909041605,-400.0,0.00019178,2]
[360627475,1746909041616,-400.0,0.00019178,2]
[360627476,1746909041626,-400.0,0.00019178,2]
[360627477,1746909041636,-400.0,0.00019178,2]
[360627478,1746909041646,-400.0,0.00019178,2]
[360627479,1746909041655,-400.0,0.00019178,2]
[360627480,1746909041664,-400.0,0.00019178,2]
[360627481,1746909041674,-400.0,0.00019178,2]
[360627482,1746909041683,-400.0,0.00019178,2]
[360627483,1746909041693,-400.0,0.00019178,2]
[360627484,1746909041702,-250.0,0.00019178,2]
[360627485,1746909041712,-400.0,0.00019178,2]
[360627486,1746909041721,-400.0,0.00019178,2]
[360627487,1746909041730,-400.0,0.00019178,2]
[360627488,1746909041740,-400.0,0.00019178,2]
[360627489,1746909041749,-400.0,0.00019178,2]
[360627490,1746909041759,-400.0,0.00019178,2]
[360627491,1746909041768,-400.0,0.00019178,2]
[360627492,1746909041779,-535.74,0.00019178,2]
[360627493,1746909041788,-400.0,0.00019178,2]
[360627494,1746909041798,-400.0,0.00019178,2]
[360627495,1746909041807,-400.0,0.00019178,2]
[360627496,1746909041817,-400.0,0.00019178,2]
[360627497,1746909041827,-242.65063174,0.00019178,2]
[360627498,1746909041836,-400.0,0.00019178,2]
[360627499,1746909041850,-500.0,0.00019178,2]
[360627500,1746909041859,-231.44345219,0.00019178,2]
[360627501,1746909041868,-400.0,0.00019178,2]
[360627502,1746909041877,-400.0,0.00019178,2]
[360627503,1746909041887,-400.0,0.00019178,2]
[360627504,1746909041897,-400.0,0.00019178,2]
[360627505,1746909041907,-170.14,0.00019178,2]
[360627506,1746909041916,-400.0,0.00019178,2]
[360627507,1746909041924,-400.0,0.00019178,2]
[360627508,1746909041934,-400.0,0.00019178,2]
[360627509,1746909041943,-400.0,0.00019178,2]
[360627510,1746909041952,-400.0,0.00019178,2]
[360627511,1746909041961,-400.0,0.00019178,2]
[360627512,1746909041970,-419.14541374,0.00019178,2]
[360627513,1746909041979,-245.08620136,0.00019178,2]
[360627514,1746909041988,-151.79159116,0.00019178,2]
[360627515,1746909041998,-400.0,0.00019178,2]
[360627516,1746909042007,-400.0,0.00019178,2]
[360627517,1746909042016,-400.0,0.00019178,2]
[360627518,1746909042026,-400.0,0.00019178,2]
[360627519,1746909042035,-400.0,0.00019178,2]
[360627520,1746909042045,-400.0,0.00019178,2]
[360627521,1746909042054,-400.0,0.00019178,2]
[360627522,1746909042063,-412.38,0.00019178,2]
[360627523,1746909042072,-400.0,0.00019178,2]
[360627524,1746909042082,-400.0,0.00019178,2]
[360627525,1746909042091,-400.0,0.00019178,2]
[360627526,1746909042100,-352.33454436,0.00019178,2]
[360627527,1746909042110,-400.0,0.00019178,2]
[360627528,1746909042119,-400.0,0.00019178,2]
[360627529,1746909042129,-1362.657294,0.00019178,2]
[360627530,1746909042139,-400.0,0.00019178,2]
[360627531,1746909042148,-400.0,0.00019178,2]
[360627532,1746909042157,-542.38,0.00019178,2]
[360627533,1746909042167,-400.0,0.00019178,2]
[360627534,1746909042176,-488.4356275,0.00019178,2]
[360627535,1746909042186,-400.0,0.00019178,2]
[360627536,1746909042195,-400.0,0.00019178,2]
[360627537,1746909042204,-400.0,0.00019178,2]
[360627538,1746909042213,-400.0,0.00019178,2]
[360627539,1746909042222,-400.0,0.00019178,2]
[360627540,1746909042231,-400.0,0.00019178,2]
[360627541,1746909042241,-305.971171,0.00019178,2]
[360627542,1746909042251,-400.0,0.00019178,2]
[360627543,1746909042260,-400.0,0.00019178,2]
[360627544,1746909042269,-400.0,0.00019178,2]
[360627545,1746909042279,-400.0,0.00019178,2]
[360627546,1746909042289,-411.04,0.00019178,2]
[360627547,1746909042301,-400.0,0.00019178,2]
[360627548,1746909042312,-400.0,0.00019178,2]
[360627549,1746909042322,-400.0,0.00019178,2]
[360627550,1746909042331,-400.0,0.00019178,2]
[360627551,1746909042343,-400.0,0.00019178,2]
[360627552,1746909042352,-400.0,0.00019178,2]
[360627553,1746909042361,-400.0,0.00019178,2]
[360627554,1746909042371,-215.57429801,0.00019178,2]
[360627555,1746909042381,-400.0,0.00019178,2]
[360627556,1746909042390,-400.0,0.00019178,2]
[360627557,1746909042400,-221.05770126,0.00019178,2]
[360627558,1746909042421,-400.0,0.00019178,2]
[360627559,1746909042440,-400.0,0.00019178,2]
[360627560,1746909042451,-503.92554047,0.00019178,2]
[360627561,1746909042462,-400.0,0.00019178,2]
[360627562,1746909042472,-297.04875532,0.00019178,2]
[360627563,1746909042482,-400.0,0.00019178,2]
[360627564,1746909042491,-400.0,0.00019178,2]
[360627565,1746909042502,-400.0,0.00019178,2]
[360627566,1746909042512,-211.28211041,0.00019178,2]
[360627567,1746909042522,-400.0,0.00019178,2]
[360627568,1746909042531,-400.0,0.00019178,2]
[360627569,1746909042541,-400.0,0.00019178,2]
[360627570,1746909042550,-400.0,0.00019178,2]
[360627571,1746909042560,-400.0,0.00019178,2]
[360627572,1746909042569,-527.91,0.00019178,2]
[360627573,1746909042579,-400.0,0.00019178,2]
[360627574,1746909042589,-400.0,0.00019178,2]
[360627575,1746909042598,-400.0,0.00019178,2]
[360627576,1746909042608,-400.0,0.00019178,2]
[360627577,1746909042618,-400.0,0.00019178,2]
[360627578,1746909042628,-400.0,0.00019178,2]
[360627579,1746909042637,-400.0,0.00019178,2]
[360627580,1746909042647,-400.0,0.00019178,2]
[360627581,1746909042656,-400.0,0.00019178,2]
[360627582,1746909042665,-400.0,0.00019178,2]
[360627583,1746909042675,-400.0,0.00019178,2]
[360627584,1746909042684,-400.0,0.00019178,2]
[360627585,1746909042693,-500.0,0.00019178,2]
[360627586,1746909042703,-400.0,0.00019178,2]
[360627587,1746909042713,-400.0,0.00019178,2]
[360627588,1746909042723,-400.0,0.00019178,2]
[360627589,1746909042732,-400.0,0.00019178,2]
[360627590,1746909042741,-504.43987742,0.00019178,2]
[360627591,1746909042751,-400.0,0.00019178,2]
[360627592,1746909042760,-403.26584892,0.00019178,2]
[360627593,1746909042770,-500.0,0.00019178,2]
[360627594,1746909042780,-400.0,0.00019178,2]
[360627595,1746909042789,-400.0,0.00019178,2]
[360627596,1746909042799,-400.0,0.00019178,2]
[360627597,1746909042809,-400.81805895,0.00019178,2]
[360627598,1746909042818,-400.00068287,0.00019178,2]
[360627599,1746909042828,-400.0,0.00019178,2]
[360627600,1746909042837,-400.0,0.00019178,2]
[360627601,1746909042846,-400.0,0.00019178,2]
[360627602,1746909042855,-400.0,0.00019178,2]
[360627603,1746909042864,-150.35,0.00019178,2]
[360627604,1746909042874,-400.0,0.00019178,2]
[360627605,1746909042883,-400.0,0.00019178,2]
[360627606,1746909042893,-400.0,0.00019178,2]